{"text_format":"3","workbook":"xlsx","n_sheets":5,"sheets":["تقرير مبيعات المنتجات","البيانات الفعلية","قائمة الأسعار","PivotTable الأسعار","PivotTable اتجاه المبيعات"],"not_rendered":{"charts":2,"defined_names":6,"pivot_tables":2},"read":"whole","date_system":"1900"}

{"sheet":"تقرير مبيعات المنتجات","index":0,"n_rows":20,"n_cols":2,"rows_kept":20}
[null,"تقرير مبيعات المنتجات"]
{"$rows_empty":18}
[null," المنتجات"]

{"sheet":"البيانات الفعلية","index":1,"n_rows":33,"n_cols":10,"rows_kept":33}
[null,"قائمة أسعار المنتجات والمبيعات الفعلية"]
[]
[null,"معرف المنتج","اسم المنتج","تاريخ السعر","سعر التجزئة للوحدة","سعر الوحدة في الجملة*","الوحدات المبيعة (التجزئة)","الوحدات المبيعة (الجملة)","إجمال المبيعات (العدد)","إجمال المبيعات (الثمن)"]
[null,5,{"$f":"IFERROR(IF(tblSales[[#This Row],[معرف المنتج]]<>\"\",VLOOKUP(tblSales[معرف المنتج],tblProducts[[معرف المنتج]:[الاسم]],2,FALSE),\"\"),\"معرف منتج غير معروف\")","v":"السراويل القصيرة"},"2012-01-01",20,{"v":20,"d":" 20 ر.س.‏"},629,{"v":1254,"d":"1,254"},{"$f":"tblSales[[#This Row],[الوحدات المبيعة (التجزئة)]]+tblSales[[#This Row],[الوحدات المبيعة (الجملة)]]","v":{"v":1883,"d":"1,883"}},{"$f":"tblSales[[#This Row],[الوحدات المبيعة (التجزئة)]]*tblSales[[#This Row],[سعر التجزئة للوحدة]]+tblSales[[#This Row],[الوحدات المبيعة (الجملة)]]*tblSales[[#This Row],[سعر الوحدة في الجملة*]]","v":{"v":37660,"d":" 37660.00 ر.س.‏"}}]
[null,1,{"$f":"IFERROR(IF(tblSales[[#This Row],[معرف المنتج]]<>\"\",VLOOKUP(tblSales[معرف المنتج],tblProducts[[معرف المنتج]:[الاسم]],2,FALSE),\"\"),\"معرف منتج غير معروف\")","v":"القمصان"},"2012-01-01",88,{"v":54,"d":" 54 ر.س.‏"},734,{"v":1427,"d":"1,427"},{"$f":"tblSales[[#This Row],[الوحدات المبيعة (التجزئة)]]+tblSales[[#This Row],[الوحدات المبيعة (الجملة)]]","v":{"v":2161,"d":"2,161"}},{"$f":"tblSales[[#This Row],[الوحدات المبيعة (التجزئة)]]*tblSales[[#This Row],[سعر التجزئة للوحدة]]+tblSales[[#This Row],[الوحدات المبيعة (الجملة)]]*tblSales[[#This Row],[سعر الوحدة في الجملة*]]","v":{"v":141650,"d":" 141650.00 ر.س.‏"}}]
[null,2,{"$f":"IFERROR(IF(tblSales[[#This Row],[معرف المنتج]]<>\"\",VLOOKUP(tblSales[معرف المنتج],tblProducts[[معرف المنتج]:[الاسم]],2,FALSE),\"\"),\"معرف منتج غير معروف\")","v":"الصنادل"},"2012-01-01",70,{"v":44,"d":" 44 ر.س.‏"},744,{"v":1043,"d":"1,043"},{"$f":"tblSales[[#This Row],[الوحدات المبيعة (التجزئة)]]+tblSales[[#This Row],[الوحدات المبيعة (الجملة)]]","v":{"v":1787,"d":"1,787"}},{"$f":"tblSales[[#This Row],[الوحدات المبيعة (التجزئة)]]*tblSales[[#This Row],[سعر التجزئة للوحدة]]+tblSales[[#This Row],[الوحدات المبيعة (الجملة)]]*tblSales[[#This Row],[سعر الوحدة في الجملة*]]","v":{"v":97972,"d":" 97972.00 ر.س.‏"}}]
[null,3,{"$f":"IFERROR(IF(tblSales[[#This Row],[معرف المنتج]]<>\"\",VLOOKUP(tblSales[معرف المنتج],tblProducts[[معرف المنتج]:[الاسم]],2,FALSE),\"\"),\"معرف منتج غير معروف\")","v":"الشماسي"},"2012-01-01",63,{"v":44,"d":" 44 ر.س.‏"},681,{"v":1523,"d":"1,523"},{"$f":"tblSales[[#This Row],[الوحدات المبيعة (التجزئة)]]+tblSales[[#This Row],[الوحدات المبيعة (الجملة)]]","v":{"v":2204,"d":"2,204"}},{"$f":"tblSales[[#This Row],[الوحدات المبيعة (التجزئة)]]*tblSales[[#This Row],[سعر التجزئة للوحدة]]+tblSales[[#This Row],[الوحدات المبيعة (الجملة)]]*tblSales[[#This Row],[سعر الوحدة في الجملة*]]","v":{"v":109915,"d":" 109915.00 ر.س.‏"}}]
[null,4,{"$f":"IFERROR(IF(tblSales[[#This Row],[معرف المنتج]]<>\"\",VLOOKUP(tblSales[معرف المنتج],tblProducts[[معرف المنتج]:[الاسم]],2,FALSE),\"\"),\"معرف منتج غير معروف\")","v":"زجاجات المياه"},"2012-01-01",35,{"v":27,"d":" 27 ر.س.‏"},602,{"v":1822,"d":"1,822"},{"$f":"tblSales[[#This Row],[الوحدات المبيعة (التجزئة)]]+tblSales[[#This Row],[الوحدات المبيعة (الجملة)]]","v":{"v":2424,"d":"2,424"}},{"$f":"tblSales[[#This Row],[الوحدات المبيعة (التجزئة)]]*tblSales[[#This Row],[سعر التجزئة للوحدة]]+tblSales[[#This Row],[الوحدات المبيعة (الجملة)]]*tblSales[[#This Row],[سعر الوحدة في الجملة*]]","v":{"v":70264,"d":" 70264.00 ر.س.‏"}}]
[null,1,{"$f":"IFERROR(IF(tblSales[[#This Row],[معرف المنتج]]<>\"\",VLOOKUP(tblSales[معرف المنتج],tblProducts[[معرف المنتج]:[الاسم]],2,FALSE),\"\"),\"معرف منتج غير معروف\")","v":"القمصان"},"2012-02-01",55,{"v":44,"d":" 44 ر.س.‏"},678,{"v":1515,"d":"1,515"},{"$f":"tblSales[[#This Row],[الوحدات المبيعة (التجزئة)]]+tblSales[[#This Row],[الوحدات المبيعة (الجملة)]]","v":{"v":2193,"d":"2,193"}},{"$f":"tblSales[[#This Row],[الوحدات المبيعة (التجزئة)]]*tblSales[[#This Row],[سعر التجزئة للوحدة]]+tblSales[[#This Row],[الوحدات المبيعة (الجملة)]]*tblSales[[#This Row],[سعر الوحدة في الجملة*]]","v":{"v":103950,"d":" 103950.00 ر.س.‏"}}]
[null,2,{"$f":"IFERROR(IF(tblSales[[#This Row],[معرف المنتج]]<>\"\",VLOOKUP(tblSales[معرف المنتج],tblProducts[[معرف المنتج]:[الاسم]],2,FALSE),\"\"),\"معرف منتج غير معروف\")","v":"الصنادل"},"2012-02-01",83,{"v":54,"d":" 54 ر.س.‏"},753,{"v":1005,"d":"1,005"},{"$f":"tblSales[[#This Row],[الوحدات المبيعة (التجزئة)]]+tblSales[[#This Row],[الوحدات المبيعة (الجملة)]]","v":{"v":1758,"d":"1,758"}},{"$f":"tblSales[[#This Row],[الوحدات المبيعة (التجزئة)]]*tblSales[[#This Row],[سعر التجزئة للوحدة]]+tblSales[[#This Row],[الوحدات المبيعة (الجملة)]]*tblSales[[#This Row],[سعر الوحدة في الجملة*]]","v":{"v":116769,"d":" 116769.00 ر.س.‏"}}]
[null,3,{"$f":"IFERROR(IF(tblSales[[#This Row],[معرف المنتج]]<>\"\",VLOOKUP(tblSales[معرف المنتج],tblProducts[[معرف المنتج]:[الاسم]],2,FALSE),\"\"),\"معرف منتج غير معروف\")","v":"الشماسي"},"2012-02-01",34,{"v":34,"d":" 34 ر.س.‏"},986,{"v":1069,"d":"1,069"},{"$f":"tblSales[[#This Row],[الوحدات المبيعة (التجزئة)]]+tblSales[[#This Row],[الوحدات المبيعة (الجملة)]]","v":{"v":2055,"d":"2,055"}},{"$f":"tblSales[[#This Row],[الوحدات المبيعة (التجزئة)]]*tblSales[[#This Row],[سعر التجزئة للوحدة]]+tblSales[[#This Row],[الوحدات المبيعة (الجملة)]]*tblSales[[#This Row],[سعر الوحدة في الجملة*]]","v":{"v":69870,"d":" 69870.00 ر.س.‏"}}]
[null,4,{"$f":"IFERROR(IF(tblSales[[#This Row],[معرف المنتج]]<>\"\",VLOOKUP(tblSales[معرف المنتج],tblProducts[[معرف المنتج]:[الاسم]],2,FALSE),\"\"),\"معرف منتج غير معروف\")","v":"زجاجات المياه"},"2012-02-01",35,{"v":25,"d":" 25 ر.س.‏"},848,{"v":1211,"d":"1,211"},{"$f":"tblSales[[#This Row],[الوحدات المبيعة (التجزئة)]]+tblSales[[#This Row],[الوحدات المبيعة (الجملة)]]","v":{"v":2059,"d":"2,059"}},{"$f":"tblSales[[#This Row],[الوحدات المبيعة (التجزئة)]]*tblSales[[#This Row],[سعر التجزئة للوحدة]]+tblSales[[#This Row],[الوحدات المبيعة (الجملة)]]*tblSales[[#This Row],[سعر الوحدة في الجملة*]]","v":{"v":59955,"d":" 59955.00 ر.س.‏"}}]
[null,5,{"$f":"IFERROR(IF(tblSales[[#This Row],[معرف المنتج]]<>\"\",VLOOKUP(tblSales[معرف المنتج],tblProducts[[معرف المنتج]:[الاسم]],2,FALSE),\"\"),\"معرف منتج غير معروف\")","v":"السراويل القصيرة"},"2012-02-01",41,{"v":38,"d":" 38 ر.س.‏"},980,{"v":1330,"d":"1,330"},{"$f":"tblSales[[#This Row],[الوحدات المبيعة (التجزئة)]]+tblSales[[#This Row],[الوحدات المبيعة (الجملة)]]","v":{"v":2310,"d":"2,310"}},{"$f":"tblSales[[#This Row],[الوحدات المبيعة (التجزئة)]]*tblSales[[#This Row],[سعر التجزئة للوحدة]]+tblSales[[#This Row],[الوحدات المبيعة (الجملة)]]*tblSales[[#This Row],[سعر الوحدة في الجملة*]]","v":{"v":90720,"d":" 90720.00 ر.س.‏"}}]
[null,1,{"$f":"IFERROR(IF(tblSales[[#This Row],[معرف المنتج]]<>\"\",VLOOKUP(tblSales[معرف المنتج],tblProducts[[معرف المنتج]:[الاسم]],2,FALSE),\"\"),\"معرف منتج غير معروف\")","v":"القمصان"},"2012-02-29",27,{"v":18,"d":" 18 ر.س.‏"},533,{"v":1936,"d":"1,936"},{"$f":"tblSales[[#This Row],[الوحدات المبيعة (التجزئة)]]+tblSales[[#This Row],[الوحدات المبيعة (الجملة)]]","v":{"v":2469,"d":"2,469"}},{"$f":"tblSales[[#This Row],[الوحدات المبيعة (التجزئة)]]*tblSales[[#This Row],[سعر التجزئة للوحدة]]+tblSales[[#This Row],[الوحدات المبيعة (الجملة)]]*tblSales[[#This Row],[سعر الوحدة في الجملة*]]","v":{"v":49239,"d":" 49239.00 ر.س.‏"}}]
[null,2,{"$f":"IFERROR(IF(tblSales[[#This Row],[معرف المنتج]]<>\"\",VLOOKUP(tblSales[معرف المنتج],tblProducts[[معرف المنتج]:[الاسم]],2,FALSE),\"\"),\"معرف منتج غير معروف\")","v":"الصنادل"},"2012-02-29",38,{"v":28,"d":" 28 ر.س.‏"},952,{"v":1512,"d":"1,512"},{"$f":"tblSales[[#This Row],[الوحدات المبيعة (التجزئة)]]+tblSales[[#This Row],[الوحدات المبيعة (الجملة)]]","v":{"v":2464,"d":"2,464"}},{"$f":"tblSales[[#This Row],[الوحدات المبيعة (التجزئة)]]*tblSales[[#This Row],[سعر التجزئة للوحدة]]+tblSales[[#This Row],[الوحدات المبيعة (الجملة)]]*tblSales[[#This Row],[سعر الوحدة في الجملة*]]","v":{"v":78512,"d":" 78512.00 ر.س.‏"}}]
[null,3,{"$f":"IFERROR(IF(tblSales[[#This Row],[معرف المنتج]]<>\"\",VLOOKUP(tblSales[معرف المنتج],tblProducts[[معرف المنتج]:[الاسم]],2,FALSE),\"\"),\"معرف منتج غير معروف\")","v":"الشماسي"},"2012-02-29",92,{"v":92,"d":" 92 ر.س.‏"},956,{"v":1266,"d":"1,266"},{"$f":"tblSales[[#This Row],[الوحدات المبيعة (التجزئة)]]+tblSales[[#This Row],[الوحدات المبيعة (الجملة)]]","v":{"v":2222,"d":"2,222"}},{"$f":"tblSales[[#This Row],[الوحدات المبيعة (التجزئة)]]*tblSales[[#This Row],[سعر التجزئة للوحدة]]+tblSales[[#This Row],[الوحدات المبيعة (الجملة)]]*tblSales[[#This Row],[سعر الوحدة في الجملة*]]","v":{"v":204424,"d":" 204424.00 ر.س.‏"}}]
[null,4,{"$f":"IFERROR(IF(tblSales[[#This Row],[معرف المنتج]]<>\"\",VLOOKUP(tblSales[معرف المنتج],tblProducts[[معرف المنتج]:[الاسم]],2,FALSE),\"\"),\"معرف منتج غير معروف\")","v":"زجاجات المياه"},"2012-02-29",43,{"v":36,"d":" 36 ر.س.‏"},952,{"v":1390,"d":"1,390"},{"$f":"tblSales[[#This Row],[الوحدات المبيعة (التجزئة)]]+tblSales[[#This Row],[الوحدات المبيعة (الجملة)]]","v":{"v":2342,"d":"2,342"}},{"$f":"tblSales[[#This Row],[الوحدات المبيعة (التجزئة)]]*tblSales[[#This Row],[سعر التجزئة للوحدة]]+tblSales[[#This Row],[الوحدات المبيعة (الجملة)]]*tblSales[[#This Row],[سعر الوحدة في الجملة*]]","v":{"v":90976,"d":" 90976.00 ر.س.‏"}}]
[null,5,{"$f":"IFERROR(IF(tblSales[[#This Row],[معرف المنتج]]<>\"\",VLOOKUP(tblSales[معرف المنتج],tblProducts[[معرف المنتج]:[الاسم]],2,FALSE),\"\"),\"معرف منتج غير معروف\")","v":"السراويل القصيرة"},"2012-02-29",98,{"v":73,"d":" 73 ر.س.‏"},530,{"v":1452,"d":"1,452"},{"$f":"tblSales[[#This Row],[الوحدات المبيعة (التجزئة)]]+tblSales[[#This Row],[الوحدات المبيعة (الجملة)]]","v":{"v":1982,"d":"1,982"}},{"$f":"tblSales[[#This Row],[الوحدات المبيعة (التجزئة)]]*tblSales[[#This Row],[سعر التجزئة للوحدة]]+tblSales[[#This Row],[الوحدات المبيعة (الجملة)]]*tblSales[[#This Row],[سعر الوحدة في الجملة*]]","v":{"v":157936,"d":" 157936.00 ر.س.‏"}}]
[null,1,{"$f":"IFERROR(IF(tblSales[[#This Row],[معرف المنتج]]<>\"\",VLOOKUP(tblSales[معرف المنتج],tblProducts[[معرف المنتج]:[الاسم]],2,FALSE),\"\"),\"معرف منتج غير معروف\")","v":"القمصان"},"2012-03-31",38,{"v":28,"d":" 28 ر.س.‏"},973,{"v":1415,"d":"1,415"},{"$f":"tblSales[[#This Row],[الوحدات المبيعة (التجزئة)]]+tblSales[[#This Row],[الوحدات المبيعة (الجملة)]]","v":{"v":2388,"d":"2,388"}},{"$f":"tblSales[[#This Row],[الوحدات المبيعة (التجزئة)]]*tblSales[[#This Row],[سعر التجزئة للوحدة]]+tblSales[[#This Row],[الوحدات المبيعة (الجملة)]]*tblSales[[#This Row],[سعر الوحدة في الجملة*]]","v":{"v":76594,"d":" 76594.00 ر.س.‏"}}]
[null,2,{"$f":"IFERROR(IF(tblSales[[#This Row],[معرف المنتج]]<>\"\",VLOOKUP(tblSales[معرف المنتج],tblProducts[[معرف المنتج]:[الاسم]],2,FALSE),\"\"),\"معرف منتج غير معروف\")","v":"الصنادل"},"2012-03-31",50,{"v":36,"d":" 36 ر.س.‏"},672,{"v":1105,"d":"1,105"},{"$f":"tblSales[[#This Row],[الوحدات المبيعة (التجزئة)]]+tblSales[[#This Row],[الوحدات المبيعة (الجملة)]]","v":{"v":1777,"d":"1,777"}},{"$f":"tblSales[[#This Row],[الوحدات المبيعة (التجزئة)]]*tblSales[[#This Row],[سعر التجزئة للوحدة]]+tblSales[[#This Row],[الوحدات المبيعة (الجملة)]]*tblSales[[#This Row],[سعر الوحدة في الجملة*]]","v":{"v":73380,"d":" 73380.00 ر.س.‏"}}]
[null,3,{"$f":"IFERROR(IF(tblSales[[#This Row],[معرف المنتج]]<>\"\",VLOOKUP(tblSales[معرف المنتج],tblProducts[[معرف المنتج]:[الاسم]],2,FALSE),\"\"),\"معرف منتج غير معروف\")","v":"الشماسي"},"2012-03-31",24,{"v":23,"d":" 23 ر.س.‏"},769,{"v":1629,"d":"1,629"},{"$f":"tblSales[[#This Row],[الوحدات المبيعة (التجزئة)]]+tblSales[[#This Row],[الوحدات المبيعة (الجملة)]]","v":{"v":2398,"d":"2,398"}},{"$f":"tblSales[[#This Row],[الوحدات المبيعة (التجزئة)]]*tblSales[[#This Row],[سعر التجزئة للوحدة]]+tblSales[[#This Row],[الوحدات المبيعة (الجملة)]]*tblSales[[#This Row],[سعر الوحدة في الجملة*]]","v":{"v":55923,"d":" 55923.00 ر.س.‏"}}]
[null,4,{"$f":"IFERROR(IF(tblSales[[#This Row],[معرف المنتج]]<>\"\",VLOOKUP(tblSales[معرف المنتج],tblProducts[[معرف المنتج]:[الاسم]],2,FALSE),\"\"),\"معرف منتج غير معروف\")","v":"زجاجات المياه"},"2012-03-31",72,{"v":57,"d":" 57 ر.س.‏"},985,{"v":1848,"d":"1,848"},{"$f":"tblSales[[#This Row],[الوحدات المبيعة (التجزئة)]]+tblSales[[#This Row],[الوحدات المبيعة (الجملة)]]","v":{"v":2833,"d":"2,833"}},{"$f":"tblSales[[#This Row],[الوحدات المبيعة (التجزئة)]]*tblSales[[#This Row],[سعر التجزئة للوحدة]]+tblSales[[#This Row],[الوحدات المبيعة (الجملة)]]*tblSales[[#This Row],[سعر الوحدة في الجملة*]]","v":{"v":176256,"d":" 176256.00 ر.س.‏"}}]
[null,5,{"$f":"IFERROR(IF(tblSales[[#This Row],[معرف المنتج]]<>\"\",VLOOKUP(tblSales[معرف المنتج],tblProducts[[معرف المنتج]:[الاسم]],2,FALSE),\"\"),\"معرف منتج غير معروف\")","v":"السراويل القصيرة"},"2012-03-31",85,{"v":43,"d":" 43 ر.س.‏"},721,{"v":1426,"d":"1,426"},{"$f":"tblSales[[#This Row],[الوحدات المبيعة (التجزئة)]]+tblSales[[#This Row],[الوحدات المبيعة (الجملة)]]","v":{"v":2147,"d":"2,147"}},{"$f":"tblSales[[#This Row],[الوحدات المبيعة (التجزئة)]]*tblSales[[#This Row],[سعر التجزئة للوحدة]]+tblSales[[#This Row],[الوحدات المبيعة (الجملة)]]*tblSales[[#This Row],[سعر الوحدة في الجملة*]]","v":{"v":122603,"d":" 122603.00 ر.س.‏"}}]
[null,1,{"$f":"IFERROR(IF(tblSales[[#This Row],[معرف المنتج]]<>\"\",VLOOKUP(tblSales[معرف المنتج],tblProducts[[معرف المنتج]:[الاسم]],2,FALSE),\"\"),\"معرف منتج غير معروف\")","v":"القمصان"},"2012-04-30",91,{"v":65,"d":" 65 ر.س.‏"},603,{"v":1226,"d":"1,226"},{"$f":"tblSales[[#This Row],[الوحدات المبيعة (التجزئة)]]+tblSales[[#This Row],[الوحدات المبيعة (الجملة)]]","v":{"v":1829,"d":"1,829"}},{"$f":"tblSales[[#This Row],[الوحدات المبيعة (التجزئة)]]*tblSales[[#This Row],[سعر التجزئة للوحدة]]+tblSales[[#This Row],[الوحدات المبيعة (الجملة)]]*tblSales[[#This Row],[سعر الوحدة في الجملة*]]","v":{"v":134563,"d":" 134563.00 ر.س.‏"}}]
[null,2,{"$f":"IFERROR(IF(tblSales[[#This Row],[معرف المنتج]]<>\"\",VLOOKUP(tblSales[معرف المنتج],tblProducts[[معرف المنتج]:[الاسم]],2,FALSE),\"\"),\"معرف منتج غير معروف\")","v":"الصنادل"},"2012-04-30",91,{"v":55,"d":" 55 ر.س.‏"},892,{"v":1823,"d":"1,823"},{"$f":"tblSales[[#This Row],[الوحدات المبيعة (التجزئة)]]+tblSales[[#This Row],[الوحدات المبيعة (الجملة)]]","v":{"v":2715,"d":"2,715"}},{"$f":"tblSales[[#This Row],[الوحدات المبيعة (التجزئة)]]*tblSales[[#This Row],[سعر التجزئة للوحدة]]+tblSales[[#This Row],[الوحدات المبيعة (الجملة)]]*tblSales[[#This Row],[سعر الوحدة في الجملة*]]","v":{"v":181437,"d":" 181437.00 ر.س.‏"}}]
[null,3,{"$f":"IFERROR(IF(tblSales[[#This Row],[معرف المنتج]]<>\"\",VLOOKUP(tblSales[معرف المنتج],tblProducts[[معرف المنتج]:[الاسم]],2,FALSE),\"\"),\"معرف منتج غير معروف\")","v":"الشماسي"},"2012-04-30",42,{"v":42,"d":" 42 ر.س.‏"},611,{"v":1181,"d":"1,181"},{"$f":"tblSales[[#This Row],[الوحدات المبيعة (التجزئة)]]+tblSales[[#This Row],[الوحدات المبيعة (الجملة)]]","v":{"v":1792,"d":"1,792"}},{"$f":"tblSales[[#This Row],[الوحدات المبيعة (التجزئة)]]*tblSales[[#This Row],[سعر التجزئة للوحدة]]+tblSales[[#This Row],[الوحدات المبيعة (الجملة)]]*tblSales[[#This Row],[سعر الوحدة في الجملة*]]","v":{"v":75264,"d":" 75264.00 ر.س.‏"}}]
[null,4,{"$f":"IFERROR(IF(tblSales[[#This Row],[معرف المنتج]]<>\"\",VLOOKUP(tblSales[معرف المنتج],tblProducts[[معرف المنتج]:[الاسم]],2,FALSE),\"\"),\"معرف منتج غير معروف\")","v":"زجاجات المياه"},"2012-04-30",85,{"v":43,"d":" 43 ر.س.‏"},530,{"v":1039,"d":"1,039"},{"$f":"tblSales[[#This Row],[الوحدات المبيعة (التجزئة)]]+tblSales[[#This Row],[الوحدات المبيعة (الجملة)]]","v":{"v":1569,"d":"1,569"}},{"$f":"tblSales[[#This Row],[الوحدات المبيعة (التجزئة)]]*tblSales[[#This Row],[سعر التجزئة للوحدة]]+tblSales[[#This Row],[الوحدات المبيعة (الجملة)]]*tblSales[[#This Row],[سعر الوحدة في الجملة*]]","v":{"v":89727,"d":" 89727.00 ر.س.‏"}}]
[null,5,{"$f":"IFERROR(IF(tblSales[[#This Row],[معرف المنتج]]<>\"\",VLOOKUP(tblSales[معرف المنتج],tblProducts[[معرف المنتج]:[الاسم]],2,FALSE),\"\"),\"معرف منتج غير معروف\")","v":"السراويل القصيرة"},"2012-04-30",82,{"v":71,"d":" 71 ر.س.‏"},716,{"v":1249,"d":"1,249"},{"$f":"tblSales[[#This Row],[الوحدات المبيعة (التجزئة)]]+tblSales[[#This Row],[الوحدات المبيعة (الجملة)]]","v":{"v":1965,"d":"1,965"}},{"$f":"tblSales[[#This Row],[الوحدات المبيعة (التجزئة)]]*tblSales[[#This Row],[سعر التجزئة للوحدة]]+tblSales[[#This Row],[الوحدات المبيعة (الجملة)]]*tblSales[[#This Row],[سعر الوحدة في الجملة*]]","v":{"v":147391,"d":" 147391.00 ر.س.‏"}}]
[null,1,{"$f":"IFERROR(IF(tblSales[[#This Row],[معرف المنتج]]<>\"\",VLOOKUP(tblSales[معرف المنتج],tblProducts[[معرف المنتج]:[الاسم]],2,FALSE),\"\"),\"معرف منتج غير معروف\")","v":"القمصان"},"2012-05-14",34,{"v":31,"d":" 31 ر.س.‏"},850,{"v":1548,"d":"1,548"},{"$f":"tblSales[[#This Row],[الوحدات المبيعة (التجزئة)]]+tblSales[[#This Row],[الوحدات المبيعة (الجملة)]]","v":{"v":2398,"d":"2,398"}},{"$f":"tblSales[[#This Row],[الوحدات المبيعة (التجزئة)]]*tblSales[[#This Row],[سعر التجزئة للوحدة]]+tblSales[[#This Row],[الوحدات المبيعة (الجملة)]]*tblSales[[#This Row],[سعر الوحدة في الجملة*]]","v":{"v":76888,"d":" 76888.00 ر.س.‏"}}]
[null,2,{"$f":"IFERROR(IF(tblSales[[#This Row],[معرف المنتج]]<>\"\",VLOOKUP(tblSales[معرف المنتج],tblProducts[[معرف المنتج]:[الاسم]],2,FALSE),\"\"),\"معرف منتج غير معروف\")","v":"الصنادل"},"2012-05-14",64,{"v":40,"d":" 40 ر.س.‏"},876,{"v":1663,"d":"1,663"},{"$f":"tblSales[[#This Row],[الوحدات المبيعة (التجزئة)]]+tblSales[[#This Row],[الوحدات المبيعة (الجملة)]]","v":{"v":2539,"d":"2,539"}},{"$f":"tblSales[[#This Row],[الوحدات المبيعة (التجزئة)]]*tblSales[[#This Row],[سعر التجزئة للوحدة]]+tblSales[[#This Row],[الوحدات المبيعة (الجملة)]]*tblSales[[#This Row],[سعر الوحدة في الجملة*]]","v":{"v":122584,"d":" 122584.00 ر.س.‏"}}]
[null,3,{"$f":"IFERROR(IF(tblSales[[#This Row],[معرف المنتج]]<>\"\",VLOOKUP(tblSales[معرف المنتج],tblProducts[[معرف المنتج]:[الاسم]],2,FALSE),\"\"),\"معرف منتج غير معروف\")","v":"الشماسي"},"2012-05-14",33,{"v":30,"d":" 30 ر.س.‏"},881,{"v":1149,"d":"1,149"},{"$f":"tblSales[[#This Row],[الوحدات المبيعة (التجزئة)]]+tblSales[[#This Row],[الوحدات المبيعة (الجملة)]]","v":{"v":2030,"d":"2,030"}},{"$f":"tblSales[[#This Row],[الوحدات المبيعة (التجزئة)]]*tblSales[[#This Row],[سعر التجزئة للوحدة]]+tblSales[[#This Row],[الوحدات المبيعة (الجملة)]]*tblSales[[#This Row],[سعر الوحدة في الجملة*]]","v":{"v":63543,"d":" 63543.00 ر.س.‏"}}]
[null,4,{"$f":"IFERROR(IF(tblSales[[#This Row],[معرف المنتج]]<>\"\",VLOOKUP(tblSales[معرف المنتج],tblProducts[[معرف المنتج]:[الاسم]],2,FALSE),\"\"),\"معرف منتج غير معروف\")","v":"زجاجات المياه"},"2012-05-14",29,{"v":27,"d":" 27 ر.س.‏"},802,{"v":1548,"d":"1,548"},{"$f":"tblSales[[#This Row],[الوحدات المبيعة (التجزئة)]]+tblSales[[#This Row],[الوحدات المبيعة (الجملة)]]","v":{"v":2350,"d":"2,350"}},{"$f":"tblSales[[#This Row],[الوحدات المبيعة (التجزئة)]]*tblSales[[#This Row],[سعر التجزئة للوحدة]]+tblSales[[#This Row],[الوحدات المبيعة (الجملة)]]*tblSales[[#This Row],[سعر الوحدة في الجملة*]]","v":{"v":65054,"d":" 65054.00 ر.س.‏"}}]
[null,5,{"$f":"IFERROR(IF(tblSales[[#This Row],[معرف المنتج]]<>\"\",VLOOKUP(tblSales[معرف المنتج],tblProducts[[معرف المنتج]:[الاسم]],2,FALSE),\"\"),\"معرف منتج غير معروف\")","v":"السراويل القصيرة"},"2013-12-11",24,{"v":15,"d":" 15 ر.س.‏"},824,{"v":1994,"d":"1,994"},{"$f":"tblSales[[#This Row],[الوحدات المبيعة (التجزئة)]]+tblSales[[#This Row],[الوحدات المبيعة (الجملة)]]","v":{"v":2818,"d":"2,818"}},{"$f":"tblSales[[#This Row],[الوحدات المبيعة (التجزئة)]]*tblSales[[#This Row],[سعر التجزئة للوحدة]]+tblSales[[#This Row],[الوحدات المبيعة (الجملة)]]*tblSales[[#This Row],[سعر الوحدة في الجملة*]]","v":{"v":49686,"d":" 49686.00 ر.س.‏"}}]

{"sheet":"قائمة الأسعار","index":2,"n_rows":18,"n_cols":6,"rows_kept":18,"merged":[[15,1,15,5]]}
[null,"قائمة أسعار المنتجات"]
[]
[null,"الشركة الوطنية"]
[null,"23456 الشارع الثاني"]
[null,"الرياض"]
[null,"الهاتف: (425) 555-0150"]
[null,"الفاكس: (425) 555-0152"]
[null,"www.adventure-works.com",{"$nulls":3},"تاريخ التحديث الأخير: 8/15/2013"]
[]
[null,"معرف المنتج","الاسم","الوصف","سعر التجزئة للوحدة","سعر الوحدة في الجملة*"]
[null,1,"القمصان","تمتع بجو لطيف طوال الصيف بارتدائك لقمصاننا القطنية 100% والمعالجة ضد الانكماش.",{"v":22,"d":" 22 ر.س.‏"},{"v":15,"d":" 15 ر.س.‏"}]
[null,2,"الصنادل","ارتد الصندل المنعل المصنوع من المطاط المخصص للخدمة الشاقة الذي نوفره وامش على الرمال الساخنة بمنتهى السهولة.",{"v":10,"d":" 10 ر.س.‏"},{"v":6,"d":" 6 ر.س.‏"}]
[null,3,"الشماسي","استظل من الشمس تحت شمسية الشاطئ الكبيرة التي نقدمها والتي تحجب 96% من الأشعة فوق البنفسجية الضارة.",{"v":30,"d":" 30 ر.س.‏"},{"v":20,"d":" 20 ر.س.‏"}]
[null,4,"زجاجات المياه","ارو نفسك بالماء في درجات الحرارة العالية باستخدام زجاجات المياه المعزولة التي نوفرها.",{"v":7,"d":" 7 ر.س.‏"},{"v":5,"d":" 5 ر.س.‏"}]
[null,5,"السراويل القصيرة","اتجه من الماء إلى سيارتك مباشرة طالما ترتدي سراويلنا القصيرة المصنوعة من النايلون والتي تجف بسرعة كبيرة.",{"v":15,"d":" 15 ر.س.‏"},{"v":8,"d":" 8 ر.س.‏"}]
[]
[{"$nulls":5},"اتصل بنا لمعرفة العناصر غير المدرجة."]
[{"$nulls":5},"*يطبق سعر الجملة على الكميات التي تصل إلى 12 وحدة فأكثر."]

{"sheet":"PivotTable الأسعار","index":3,"n_rows":10,"n_cols":4,"rows_kept":10,"hidden":true,"merged":[[1,1,1,3]]}
[null,"PivotTable الأسعار"]
[null,"يجب أن تظل هذه الورقة مخفية. قد يؤدي إجراء أية تغييرات على PivotTable أدناه إلى وجود بيانات غير صحيحة في تقرير مبيعات المنتجات. "]
[null,"المنتج المحدد:",{"$f":"IF(LEN(B5),B5,\"بلا\")","v":"الصنادل"}]
[null,"اسم المنتج","سعر التجزئة للوحدة","مجموع إجمالي المبيعات (العدد)"]
[null,"الصنادل",{"v":38,"d":" 38 ر.س.‏"},2464]
[null,null,{"v":50,"d":" 50 ر.س.‏"},1777]
[null,null,{"v":64,"d":" 64 ر.س.‏"},2539]
[null,null,{"v":70,"d":" 70 ر.س.‏"},1787]
[null,null,{"v":83,"d":" 83 ر.س.‏"},1758]
[null,null,{"v":91,"d":" 91 ر.س.‏"},2715]

{"sheet":"PivotTable اتجاه المبيعات","index":4,"n_rows":9,"n_cols":3,"rows_kept":9,"hidden":true,"merged":[[1,1,1,3]]}
[null,"PivotTable اتجاه المبيعات"]
[null,"يجب أن تظل هذه الورقة مخفية. قد يؤدي إجراء أية تغييرات على PivotTable أدناه إلى وجود بيانات غير صحيحة في تقرير مبيعات المنتجات. "]
[null,"مجموع إجمالي المبيعات (العدد)","اسم المنتج"]
[null,"تاريخ السعر","الصنادل"]
[null,"يناير",1787]
[null,"فبراير",4222]
[null,"مارس",1777]
[null,"أبريل",2715]
[null,"مايو",2539]